bitfinex-derivatives/quotes_ETHF0:USTF0_20210403
["timestamp","ask_amount","ask_price","bid_price","bid_amount"]
[1617424041246,11.95283201,2094.5,2094.4,13.8869415]
[1617424041747,11.95283201,2094.5,2094.4,2.90695]
[1617424043154,11.95283201,2094.5,2094.4,3.04710006]
[1617424046357,11.95283201,2094.5,2094.4,14.02545419]
[1617424046557,11.95283201,2094.5,2094.4,3.04710006]
[1617424049264,11.95283201,2094.5,2094.4,14.02147904]
[1617424051268,11.95283201,2094.5,2094.4,3.04710006]
[1617424054371,11.95283201,2094.5,2094.4,14.01792051]
[1617424057876,11.95283201,2094.5,2094.4,3.04710006]
[1617424063683,10.0,2094.5,2094.4,3.04710006]
[1617424064185,10.0,2094.5,2094.4,14.01434767]
[1617424064583,10.0,2094.5,2094.4,3.04710006]
[1617424064783,11.95283201,2094.5,2094.4,3.04710006]
[1617424064984,11.95283201,2094.5,2094.4,14.01183195]
[1617424065584,3.95283201,2094.5,2094.4,14.01183195]
[1617424066886,5.48203201,2094.5,2094.4,14.01183195]
[1617424067087,11.48203201,2094.5,2094.4,3.04710006]
[1617424067486,13.48203201,2094.5,2094.4,3.04710006]
[1617424070694,13.48203201,2094.5,2094.4,13.47502139]
[1617424072896,13.48203201,2094.5,2094.1,10.43477214]
[1617424072897,67.86173201,2094.5,2094.1,10.43477214]
[1617424073395,67.86173201,2094.5,2094.4,7.03815375]
[1617424073896,67.86173201,2094.5,2093.6,10.45074104]
[1617424074195,67.86173201,2094.5,2094.4,8.25046646]
[1617424075597,67.86173201,2094.5,2094.0,2.90695]
[1617424077302,2.90695,2094.1,2094.0,2.90695]
[1617424078103,2.90695,2094.1,2094.0,3.04719195]
[1617424078503,66.33253201,2094.5,2094.0,3.04719195]
[1617424079003,66.33253201,2094.5,2094.1,0.14022791]
[1617424079302,69.23948201,2094.5,2094.4,2.90695]
[1617424079804,69.23948201,2094.5,2094.4,3.04717961]
[1617424085107,67.28665,2094.5,2094.4,3.04717961]
[1617424085509,69.23948201,2094.5,2094.4,3.04717961]
[1617424086408,69.23948201,2094.5,2094.4,11.26919965]
[1617424087010,69.23948201,2094.5,2094.4,3.04717961]
[1617424087408,61.23948201,2094.5,2094.4,3.04717961]
[1617424087709,69.23948201,2094.5,2094.4,11.26774544]
[1617424087910,67.23948201,2094.5,2094.4,11.26774544]
[1617424089116,69.23948201,2094.5,2094.4,11.26774544]
[1617424092116,69.23948201,2094.5,2094.4,8.36079544]
[1617424092315,69.23948201,2094.5,2094.4,0.14022961]
[1617424095617,69.23948201,2094.5,2094.2,0.1402278]
[1617424097321,69.23948201,2094.5,2094.4,7.11242295]
[1617424097820,69.23948201,2094.5,2094.4,7.25266027]
[1617424099720,69.23948201,2094.5,2094.4,0.14023732]
[1617424099922,69.23948201,2094.5,2094.3,7.1167116]
[1617424101022,69.23948201,2094.5,2094.4,7.11591097]
[1617424101221,69.23948201,2094.5,2094.4,7.25615162]
[1617424101523,69.23948201,2094.5,2094.4,7.11591097]
[1617424101924,69.23948201,2094.5,2094.4,7.2561497]
[1617424105929,69.23948201,2094.5,2094.4,0.14023873]
[1617424107029,69.23948201,2094.5,2094.3,7.12198113]
[1617424107731,69.23948201,2094.5,2094.4,0.1402397]
[1617424108333,67.28665,2094.5,2094.4,0.1402397]
[1617424108633,69.23948201,2094.5,2094.4,0.1402397]
[1617424108834,66.33253201,2094.5,2094.4,0.1402397]
[1617424109134,66.33253201,2094.5,2094.4,7.26370618]
[1617424109334,66.33253201,2094.5,2094.4,0.1402397]
[1617424109533,58.33253201,2094.5,2094.4,3.0471897]
[1617424109736,58.33253201,2094.5,2094.4,2.90695]
[1617424109936,64.33253201,2094.5,2094.4,3.04717634]
[1617424110337,66.33253201,2094.5,2094.4,3.04717634]
[1617424116643,66.33253201,2094.5,2094.4,0.14022634]
[1617424117242,66.33253201,2094.5,2094.3,0.14023385]
[1617424117442,66.33253201,2094.5,2094.4,0.14023403]
[1617424117843,66.33253201,2094.5,2094.3,0.14023421]
[1617424118044,66.33253201,2094.5,2094.4,0.14023424]
[1617424118344,66.33253201,2094.5,2094.3,0.14023915]
[1617424118743,66.33253201,2094.5,2094.2,0.14023979]
[1617424119646,2.90695,2094.3,2094.2,0.14023979]
[1617424122852,66.33253201,2094.5,2094.2,0.14023979]
[1617424123652,66.33253201,2094.5,2094.4,2.90695]
[1617424124254,66.33253201,2094.5,2094.4,3.04717929]
[1617424128461,64.3797,2094.5,2094.4,3.04717929]
[1617424128861,66.33253201,2094.5,2094.4,3.04717929]
[1617424129463,58.33253201,2094.5,2094.4,3.04717929]
[1617424129863,66.33253201,2094.5,2094.4,3.04717929]
[1617424130064,64.33253201,2094.5,2094.4,3.04717929]
[1617424130364,66.33253201,2094.5,2094.4,3.04717929]
[1617424132065,66.33253201,2094.5,2094.4,2.90695]
[1617424133466,66.33253201,2094.5,2094.4,4.33245]
[1617424135866,66.33253201,2094.5,2094.4,2.90695]
[1617424139776,66.33253201,2094.5,2094.4,3.04717308]
[1617424140175,11.95283201,2094.5,2094.4,3.04717308]
[1617424141176,11.95283201,2094.5,2094.4,4.96217308]
[1617424141577,11.95283201,2094.5,2094.4,14.2696358]
[1617424141979,8.11403201,2094.5,2094.4,4.96217308]
[1617424142377,0.28443201,2094.5,2094.4,4.96217308]
[1617424142678,0.28443201,2094.5,2094.4,15.35116284]
[1617424143779,0.28443201,2094.5,2094.4,4.96217308]
[1617424144177,0.28443201,2094.5,2094.4,15.35245072]
[1617424144778,0.28443201,2094.5,2094.4,4.96217308]
[1617424151486,0.28443201,2094.5,2094.4,3.04717308]
[1617424157891,23.98410549,2094.6,2094.4,3.04717308]
[1617424158291,23.98410549,2094.6,2094.5,0.14016187]
[1617424158692,23.98410549,2094.6,2094.5,10.53269877]
[1617424159294,23.98410549,2094.6,2094.5,10.24826676]
[1617424160897,23.98410549,2094.6,2094.4,2.90695]
[1617424169808,23.98410549,2094.6,2094.5,10.38716919]
[1617424171009,23.98410549,2094.6,2094.4,13.2915723]
[1617424172311,23.98410549,2094.6,2094.5,10.37480441]
[1617424178315,23.98410549,2094.6,2094.4,4.89475]
[1617424185222,23.98410549,2094.6,2094.4,2.90695]
[1617424192432,23.98410549,2094.6,2094.5,10.35826104]
[1617424192834,23.98410549,2094.6,2094.4,2.90695]
[1617424193434,23.98410549,2094.6,2094.5,10.35835494]
[1617424195836,23.98410549,2094.6,2094.4,2.90695]
[1617424197337,23.98410549,2094.6,2094.5,10.36419624]
[1617424201542,23.98410549,2094.6,2094.4,13.28414371]
[1617424203143,23.98410549,2094.6,2094.5,10.37913242]
[1617424203944,23.98410549,2094.6,2094.4,13.28509199]
[1617424204244,23.98410549,2094.6,2094.5,10.37631294]
[1617424204850,23.98410549,2094.6,2094.4,2.90695]
[1617424205650,23.98410549,2094.6,2094.5,10.38170338]
[1617424206551,23.98410549,2094.6,2094.4,2.90695]
[1617424217663,23.98410549,2094.6,2094.4,13.85693192]
[1617424225976,23.98410549,2094.6,2094.4,2.90695]
[1617424251203,23.98410549,2094.6,2093.9,11.44554389]
[1617424251704,23.98410549,2094.6,2094.0,0.14012518]
[1617424251907,23.98410549,2094.6,2094.5,2.90695]
[1617424252407,23.98410549,2094.6,2094.5,3.04707584]
[1617424261319,25.72530549,2094.6,2094.5,3.04707584]
[1617424262321,25.72530549,2094.6,2094.5,13.95853991]
[1617424262621,25.72530549,2094.6,2094.5,3.04707584]
[1617424264025,23.98410549,2094.6,2094.5,13.95581799]
[1617424264424,23.98410549,2094.6,2094.5,3.04707584]
[1617424268432,23.98410549,2094.6,2094.5,13.95407408]
[1617424269731,23.98410549,2094.6,2094.5,3.04707584]
[1617424286358,23.98410549,2094.6,2094.5,2.90695]
[1617424286559,23.98410549,2094.6,2094.5,11.06443459]
[1617424290167,23.98410549,2094.6,2094.5,8.15748459]
[1617424290468,23.98410549,2094.6,2094.5,11.06443459]
[1617424290866,23.98410549,2094.6,2094.5,2.90695]
[1617424291265,23.98410549,2094.6,2094.5,9.96102519]
[1617424292165,23.98410549,2094.6,2094.5,7.05407519]
[1617424294171,23.98410549,2094.6,2094.4,9.96216226]
[1617424295076,23.98410549,2094.6,2094.4,2.90695]
[1617424295576,23.98410549,2094.6,2094.4,9.95731177]
[1617424296781,23.98410549,2094.6,2094.5,7.04830077]
[1617424297482,23.98410549,2094.6,2094.4,9.95722234]
[1617424297683,23.98410549,2094.6,2094.4,2.90695]
[1617424298887,25.85330549,2094.6,2094.4,2.90695]
[1617424301887,23.98410549,2094.6,2094.4,2.90695]
[1617424306396,25.21970549,2094.6,2094.4,2.90695]
[1617424308110,25.21970549,2094.6,2094.5,5.96114461]
[1617424308602,25.21970549,2094.6,2094.4,2.90695]
[1617424309103,25.21970549,2094.6,2094.5,5.96223953]
[1617424309304,23.98410549,2094.6,2094.5,5.96223953]
[1617424309504,23.98410549,2094.6,2094.4,2.90695]
[1617424310806,23.98410549,2094.6,2094.5,5.96289339]
[1617424311204,23.98410549,2094.6,2094.4,2.90695]
[1617424311503,23.98410549,2094.6,2094.5,5.96286606]
[1617424311903,23.98410549,2094.6,2094.4,2.90695]
[1617424312404,23.98410549,2094.6,2094.5,5.96310731]
[1617424316307,23.98410549,2094.6,2094.4,8.87372036]
[1617424316508,25.28480549,2094.6,2094.4,8.87372036]
[1617424319412,25.28480549,2094.6,2094.5,5.96695605]
[1617424319611,25.28480549,2094.6,2094.5,6.10717343]
[1617424319911,25.28480549,2094.6,2094.5,0.14021738]
[1617424320814,25.28480549,2094.6,2094.5,6.10770646]
[1617424323617,25.28480549,2094.6,2094.5,0.14021738]
[1617424323816,25.28480549,2094.6,2094.4,2.90695]
[1617424324017,25.28480549,2094.6,2094.2,4.8891497]
[1617424324216,25.28480549,2094.6,2094.1,4.89090705]
[1617424324616,25.28480549,2094.6,2093.0,8.15151175]
[1617424324617,64.6289,2094.4,2094.0,4.89252786]
[1617424324816,64.6289,2094.4,2094.2,0.14026864]
[1617424325017,64.6289,2094.4,2094.1,0.1402661]
[1617424325417,64.6289,2094.4,2093.9,4.88450798]
[1617424325617,64.6289,2094.4,2094.0,0.1402617]
[1617424326817,2.90695,2094.1,2094.0,0.1402617]
[1617424327018,2.90695,2094.1,2094.0,5.02346894]
[1617424327618,2.90695,2094.1,2094.0,0.1402617]
[1617424327817,4.86055,2094.1,2094.0,0.1402617]
[1617424328520,4.86055,2094.1,2093.9,4.88533424]
[1617424328719,4.86055,2094.1,2093.8,7.79487895]
[1617424329220,4.86055,2094.1,2093.9,0.14027239]
[1617424330020,4.86055,2094.1,2093.9,5.0388922]
[1617424330321,4.86055,2094.1,2093.9,0.14027239]
[1617424330520,4.86055,2094.1,2093.8,7.81125521]
[1617424332120,4.86055,2094.1,2093.8,2.90695]
[1617424332721,4.86055,2094.1,2093.7,4.90442267]
[1617424333122,4.86055,2094.1,2093.6,4.90563976]
[1617424333521,4.86055,2094.1,2093.5,4.90780402]
[1617424334225,4.86055,2094.1,2093.4,2.90695]
[1617424334925,2.90695,2093.5,2093.4,2.90695]
[1617424335325,2.90695,2093.5,2093.4,7.94613078]
[1617424335926,2.90695,2093.5,2093.4,2.90695]
[1617424337230,82.29045,2093.5,2093.4,2.90695]
[1617424338330,82.29045,2093.5,2093.4,7.81108954]
[1617424339730,82.29045,2093.5,2093.4,2.90695]
[1617424339930,82.29045,2093.5,2093.4,3.04723643]
[1617424340230,2.90695,2093.5,2093.4,3.04723643]
[1617424340430,13.0684,2094.4,2093.4,3.04723643]
[1617424340832,13.0684,2094.4,2093.4,2.90695]
[1617424341034,2.90695,2094.1,2093.8,2.90695]
[1617424341735,2.90695,2094.1,2093.8,7.80291412]
[1617424343338,2.90695,2094.1,2093.8,2.90695]
[1617424344040,2.90695,2094.1,2093.8,7.79788455]
[1617424345743,2.90695,2094.1,2093.9,4.89258827]
[1617424346945,2.90695,2094.1,2093.8,2.90695]
[1617424352151,2.90695,2094.1,2093.8,10.01041865]
[1617424353653,2.90695,2094.1,2093.9,7.10561085]
[1617424354054,2.90695,2094.1,2093.8,10.01229258]
[1617424354456,2.90695,2094.1,2093.9,7.10450331]
[1617424356056,2.90695,2094.1,2094.0,7.10623663]
[1617424357157,2.90695,2094.1,2094.0,7.24649611]
[1617424357957,2.90695,2094.1,2094.0,7.10623663]
[1617424362265,2.90695,2094.1,2094.0,7.24649373]
[1617424363966,2.90695,2094.1,2094.0,0.1402571]
[1617424367269,2.90695,2094.1,2093.9,7.11728818]
[1617424367471,2.90695,2094.1,2094.0,0.14026778]
[1617424368471,2.90695,2094.1,2094.0,7.26405283]
[1617424381195,2.90695,2094.1,2094.0,0.14026778]
[1617424381694,2.90695,2094.1,2093.9,0.14026769]
[1617424381999,2.90695,2094.1,2094.0,0.1402678]
[1617424382300,2.90695,2094.1,2093.9,0.14026772]
[1617424387505,2.90695,2094.1,2093.9,8.38823736]
[1617424387705,79.11130549,2094.6,2094.0,0.14026037]
[1617424387907,82.01825549,2094.6,2094.5,2.90695]
[1617424388610,82.01825549,2094.6,2094.3,7.14689088]
[1617424391811,82.01825549,2094.6,2094.2,10.05853465]
[1617424392011,2.90695,2094.3,2094.2,10.05853465]
[1617424392212,2.90695,2094.3,2094.2,2.90695]
[1617424392512,2.90695,2094.3,2094.2,3.0472095]
[1617424396518,79.11130549,2094.6,2094.2,0.1402595]
[1617424396919,79.11130549,2094.6,2094.4,7.16612071]
[1617424397218,79.11130549,2094.6,2094.5,7.16629613]
[1617424397922,79.11130549,2094.6,2094.1,8.26908795]
[1617424398120,79.11130549,2094.6,2094.2,2.90695]
[1617424398321,79.11130549,2094.6,2094.2,12.48225492]
[1617424398523,79.11130549,2094.6,2094.3,0.14024931]
[1617424398925,79.11130549,2094.6,2094.3,8.40952059]
[1617424399522,79.11130549,2094.6,2094.4,0.14024751]
[1617424400224,79.11130549,2094.6,2094.5,2.90695]
[1617424400624,79.11130549,2094.6,2094.5,3.0471971]
[1617424403331,79.11130549,2094.6,2094.5,11.3165333]
[1617424403731,79.11130549,2094.6,2094.5,3.0471971]
[1617424407235,79.11130549,2094.6,2094.5,2.90695]
[1617424407532,79.11130549,2094.6,2094.5,3.04717875]
[1617424421445,23.98410549,2094.6,2094.5,3.04717875]
[1617424429955,23.98410549,2094.6,2094.5,12.41657899]
[1617424430656,23.98410549,2094.6,2094.5,3.04717875]
[1617424449985,23.98410549,2094.6,2094.5,11.31303695]
[1617424450487,23.98410549,2094.6,2094.5,3.04717875]
[1617424453589,23.98410549,2094.6,2094.5,12.40745076]
[1617424457397,23.98410549,2094.6,2094.5,3.04717875]
[1617424458896,25.49130549,2094.6,2094.5,3.04717875]
[1617424459497,25.49130549,2094.6,2094.5,11.30933051]
[1617424461400,23.98410549,2094.6,2094.5,11.30933051]
[1617424462803,23.98410549,2094.6,2094.5,3.04717875]
[1617424475516,23.98410549,2094.6,2094.5,11.32139038]
[1617424477119,23.98410549,2094.6,2094.5,3.04717875]
[1617424477519,23.98410549,2094.6,2094.5,2.90695]
[1617424477819,23.98410549,2094.6,2094.2,8.2785245]
[1617424478120,23.98410549,2094.6,2094.5,7.18110249]
[1617424478420,23.98410549,2094.6,2094.1,8.28588749]
[1617424478619,23.98410549,2094.6,2094.2,8.2856873]
[1617424478820,2.90695,2094.3,2094.2,11.33288572]
[1617424479020,2.90695,2094.3,2094.2,3.04719842]
[1617424479620,2.90695,2094.3,2094.2,11.32928303]
[1617424481122,2.90695,2094.3,2094.2,3.04719842]
[1617424482721,2.90695,2094.3,2094.2,11.33331251]
[1617424483524,2.90695,2094.3,2094.2,3.04719842]
[1617424485222,2.90695,2094.3,2094.2,2.90695]
[1617424487726,2.90695,2094.3,2094.2,11.20980495]
[1617424488929,2.90695,2094.3,2094.2,2.90695]
[1617424501040,2.90695,2094.3,2094.2,10.10130945]
[1617424504952,23.98410549,2094.6,2094.2,10.10130945]
[1617424505152,26.89105549,2094.6,2094.5,2.90695]
[1617424505453,23.98410549,2094.6,2094.5,12.0013945]
[1617424505853,23.98410549,2094.6,2094.5,4.81445]
[1617424506054,23.98410549,2094.6,2094.5,4.95466194]
[1617424506356,23.98410549,2094.6,2094.5,13.23680653]
[1617424507558,23.98410549,2094.6,2094.5,4.95466194]
[1617424516767,23.98410549,2094.6,2094.5,3.04716194]
[1617424533794,23.98410549,2094.6,2094.5,11.30864967]
[1617424534594,23.98410549,2094.6,2094.5,3.04716194]
[1617424534794,23.98410549,2094.6,2094.5,0.14021194]
[1617424535601,23.98410549,2094.6,2094.3,11.17395973]
[1617424535802,23.98410549,2094.6,2094.5,7.16904761]
[1617424537701,23.98410549,2094.6,2094.3,2.90695]
[1617424538404,23.98410549,2094.6,2094.4,0.14022026]
[1617424538802,23.98410549,2094.6,2094.3,2.90695]
[1617424539405,2.90695,2094.5,2094.3,2.90695]
[1617424539706,4.37705,2094.5,2094.3,2.90695]
[1617424539905,4.37705,2094.5,2094.4,0.1402165]
[1617424541205,4.37705,2094.5,2094.3,2.90695]
[1617424542305,4.37705,2094.5,2094.4,0.14021816]
[1617424542505,4.37705,2094.5,2094.3,2.90695]
[1617424544706,23.98410549,2094.6,2094.3,2.90695]
[1617424545007,23.98410549,2094.6,2094.4,8.40916622]
[1617424545506,23.98410549,2094.6,2094.5,0.14019565]
[1617424545906,23.98410549,2094.6,2094.4,0.14018927]
[1617424546108,23.98410549,2094.6,2094.5,0.14018632]
[1617424546512,23.98410549,2094.6,2094.4,0.14018329]
[1617424547309,23.98410549,2094.6,2094.4,9.50057985]
[1617424547809,23.98410549,2094.6,2094.5,0.14017964]
[1617424552915,23.98410549,2094.6,2094.5,9.49565318]
[1617424553314,23.98410549,2094.6,2094.5,0.14017964]
[1617424554018,23.98410549,2094.6,2094.4,10.58682177]
[1617424554418,23.98410549,2094.6,2094.5,0.14015414]
[1617424559427,23.98410549,2094.6,2094.5,9.47130592]
[1617424559929,23.98410549,2094.6,2094.5,12.37825592]
[1617424560832,23.98410549,2094.6,2094.5,3.04710414]
[1617424567838,23.98410549,2094.6,2094.5,12.36107707]
[1617424569042,23.98410549,2094.6,2094.5,3.04710414]
[1617424571042,23.98410549,2094.6,2094.5,12.35269053]
[1617424571847,23.98410549,2094.6,2094.5,3.04710414]
[1617424574249,23.98410549,2094.6,2094.5,12.35132678]
[1617424585570,23.98410549,2094.6,2094.5,3.04710414]
[1617424587271,23.98410549,2094.6,2094.5,12.34486048]
[1617424588871,23.98410549,2094.6,2094.5,9.43791048]
[1617424589271,23.98410549,2094.6,2094.5,12.34486048]
[1617424590773,23.98410549,2094.6,2094.5,3.04710414]
[1617424599780,23.98410549,2094.6,2094.5,4.63710414]
[1617424605588,19.65930549,2094.6,2094.5,4.63710414]
[1617424605890,17.99290549,2094.6,2094.5,4.63710414]
[1617424606088,17.63720549,2094.6,2094.5,4.63710414]
[1617424606488,17.63720549,2094.6,2094.5,3.04710414]
[1617424607188,16.92590549,2094.6,2094.5,13.98619319]
[1617424608188,16.21460549,2094.6,2094.5,13.98619319]
[1617424609091,16.21460549,2094.6,2094.5,3.04710414]
[1617424618201,16.21460549,2094.6,2094.5,13.9586597]
[1617424620606,16.21460549,2094.6,2094.5,3.04710414]
[1617424622308,16.21460549,2094.6,2094.5,13.95783955]
[1617424622606,16.21460549,2094.6,2094.5,3.04710414]
[1617424623007,16.21460549,2094.6,2094.5,13.95790659]
[1617424623707,16.21460549,2094.6,2094.5,3.04710414]
[1617424624707,16.21460549,2094.6,2094.5,13.9575075]
[1617424626310,16.21460549,2094.6,2094.5,3.04710414]
[1617424626712,16.21460549,2094.6,2094.5,13.95659373]
[1617424628514,16.21460549,2094.6,2094.5,3.04710414]
[1617424628714,12.8534272,2094.6,2094.5,3.04710414]
[1617424644729,12.8534272,2094.6,2094.5,13.88406451]
[1617424646635,12.8534272,2094.6,2094.5,3.04710414]
[1617424647838,12.8534272,2094.6,2094.5,13.886742]
[1617424648836,12.8534272,2094.6,2094.5,3.04710414]
[1617424653941,10.05279327,2094.6,2094.5,3.04710414]
[1617424655344,9.4926617,2094.6,2094.5,3.04710414]
[1617424659951,19.4926617,2094.6,2094.5,3.04710414]
[1617424663159,19.4926617,2094.6,2094.5,13.89059623]
[1617424663558,19.4926617,2094.6,2094.5,3.04710414]
[1617424674466,19.4926617,2094.6,2094.5,13.92189762]
[1617424675265,19.4926617,2094.6,2094.5,3.04710414]
[1617424675668,19.4926617,2094.6,2094.5,13.92210142]
[1617424677871,19.4926617,2094.6,2094.5,3.04710414]
[1617424681875,19.4926617,2094.6,2094.5,13.93464575]
[1617424682274,19.4926617,2094.6,2094.5,3.04710414]
[1617424696394,19.4926617,2094.6,2094.5,13.97971551]
[1617424696593,19.4926617,2094.6,2094.5,3.04710414]
[1617424697294,19.4926617,2094.6,2094.5,13.98291056]
[1617424697592,19.4926617,2094.6,2094.5,3.04710414]
[1617424698293,19.4926617,2094.6,2094.5,13.98405383]
[1617424701302,19.4926617,2094.6,2094.5,3.04710414]
[1617424703005,19.4926617,2094.6,2094.5,12.34176458]
[1617424703606,19.4926617,2094.6,2094.5,3.04710414]
[1617424703908,19.4926617,2094.6,2094.5,12.34313654]
[1617424706113,19.4926617,2094.6,2094.5,3.04710414]
[1617424707113,19.4926617,2094.6,2094.5,12.34934896]
[1617424708114,19.4926617,2094.6,2094.5,3.04710414]
[1617424712422,19.4926617,2094.6,2094.5,11.25149559]
[1617424713522,19.4926617,2094.6,2094.5,2.90695]
[1617424713820,21.1705617,2094.6,2094.5,2.90695]
[1617424717130,21.1705617,2094.6,2094.5,8.912317]
[1617424717631,21.1705617,2094.6,2094.5,1.714567]
[1617424717832,21.1705617,2094.6,2094.0,7.09875422]
[1617424718231,21.1705617,2094.6,2094.5,4.91603108]
[1617424720634,21.1705617,2094.6,2094.4,4.92101657]
[1617424722934,2.90695,2094.5,2094.4,4.92101657]
[1617424724834,2.90695,2094.5,2094.1,2.90695]
[1617424726841,2.90695,2094.2,2094.1,2.90695]
[1617424730844,19.4926617,2094.6,2094.0,4.91571753]
[1617424731446,2.90695,2094.1,2094.0,4.91571753]
[1617424733852,2.90695,2094.1,2093.9,8.92073814]
[1617424735551,2.90695,2094.1,2093.9,7.8229561]
[1617424737856,2.90695,2094.1,2093.9,8.91412555]
[1617424744967,2.90695,2094.1,2094.0,6.03000003]
[1617424751679,2.90695,2094.1,2094.0,0.14021546]
[1617424752078,2.90695,2094.1,2093.9,0.14021626]
[1617424755281,2.90695,2094.1,2093.8,0.14022449]
[1617424755482,2.90695,2094.1,2094.0,6.03527713]
[1617424755982,2.90695,2094.1,2094.0,6.1755047]
[1617424756584,2.90695,2094.1,2094.0,0.14022757]
[1617424756986,2.90695,2094.1,2093.9,0.1402248]
[1617424758989,2.90695,2094.1,2093.8,0.14022602]
[1617424759592,2.90695,2094.1,2094.0,6.0434347]
[1617424759992,2.90695,2094.1,2094.0,0.14023974]
[1617424762196,2.90695,2094.1,2093.9,0.14024731]
[1617424762495,2.90695,2094.1,2094.0,4.94539718]
[1617424762998,2.90695,2094.1,2093.4,4.95453368]
[1617424763197,2.90695,2094.1,2093.2,4.95826168]
[1617424763498,2.90695,2094.1,2093.3,0.14030922]
[1617424763899,2.90695,2094.1,2093.2,4.95826168]
[1617424763900,2.90695,2093.4,2093.1,4.96125635]
[1617424764299,2.90695,2093.4,2093.1,3.98716754]
[1617424764899,2.90695,2093.4,2092.4,10.07375559]
[1617424764900,2.90695,2093.4,2092.8,6.06563758]
[1617424766001,2.90695,2092.9,2092.8,6.06563758]
[1617424767205,2.90695,2092.9,2092.4,2.90695]
[1617424767807,2.90695,2092.9,2092.5,6.05826356]
[1617424768005,76.7491,2093.8,2092.5,6.05826356]
[1617424769205,76.7491,2093.8,2092.4,8.96529503]
[1617424769406,78.6747,2093.8,2092.4,8.96529503]
[1617424769607,78.6747,2093.8,2092.4,2.90695]
[1617424770207,2.90695,2092.5,2092.4,2.90695]
[1617424771809,2.90695,2092.5,2092.3,6.06113741]
[1617424772410,2.90695,2092.5,2092.2,6.06263174]
[1617424773112,2.90695,2092.5,2092.1,7.06418177]
[1617424773809,2.90695,2092.5,2092.2,6.06358076]
[1617424774210,2.90695,2092.5,2092.3,6.05977285]
[1617424774610,2.90695,2092.5,2092.4,6.05844949]
[1617424776015,2.90695,2092.5,2092.4,2.90695]
[1617424779517,54.3594,2093.6,2092.4,2.90695]
[1617424779718,54.3594,2093.6,2092.4,8.95461316]
[1617424779917,54.3594,2093.6,2092.7,4.94679268]
[1617424780117,54.3594,2093.6,2093.1,2.90695]
[1617424780720,54.3594,2093.6,2092.9,4.94498104]
[1617424781219,54.3594,2093.6,2092.7,4.94780076]
[1617424781619,54.3594,2093.6,2092.1,8.14682332]
[1617424781620,54.3594,2093.6,2093.0,4.95935427]
[1617424782120,2.90695,2093.1,2093.0,4.95935427]
[1617424782322,2.90695,2093.1,2092.7,2.90695]
[1617424782323,2.90695,2093.1,2092.9,4.96091888]
[1617424782720,2.90695,2093.1,2093.0,4.96016998]
[1617424782920,13.5138,2094.3,2093.0,4.96016998]
[1617424783421,13.5138,2094.3,2093.1,4.95887927]
[1617424784021,2.90695,2093.2,2093.1,7.86582927]
[1617424784821,2.90695,2093.2,2093.1,2.90695]
[1617424786134,2.90695,2093.2,2093.1,7.8682274]
[1617424787935,2.90695,2093.2,2093.1,2.90695]
[1617424788534,2.90695,2093.2,2093.1,7.86741819]
[1617424789435,2.90695,2093.2,2093.1,2.90695]
[1617424790036,2.90695,2093.2,2093.1,7.86794456]
[1617424790536,2.90695,2093.2,2093.1,2.90695]
[1617424794438,2.90695,2093.2,2093.1,8.97684237]
[1617424794640,2.90695,2093.2,2093.1,2.90695]
[1617424805952,2.90695,2093.2,2093.1,10.0941833]
[1617424806351,2.90695,2093.2,2093.1,2.90695]
[1617424806652,2.90695,2093.2,2093.1,3.04723828]
[1617424823672,2.90695,2093.2,2093.1,0.14028828]
[1617424824173,2.90695,2093.2,2092.9,0.14032501]
[1617424824374,2.90695,2093.2,2092.9,7.20625488]
[1617424824674,2.90695,2093.2,2092.8,7.2084944]
[1617424824875,2.90695,2093.2,2092.1,1.0]
[1617424824876,2.90695,2093.2,2093.0,6.10173385]
[1617424825076,16.51795,2093.2,2093.0,6.10173385]
[1617424825677,2.90695,2093.2,2092.7,7.21687042]
[1617424826078,2.90695,2093.2,2092.6,7.21770349]
[1617424826381,55.8252,2093.3,2093.0,4.99304086]
[1617424826778,55.8252,2093.3,2093.0,4.086e-05]
[1617424826978,55.8252,2093.3,2092.3,7.21304208]
[1617424827278,55.8252,2093.3,2092.4,0.14035547]
[1617424828382,2.90695,2092.5,2092.4,0.14035547]
[1617424828583,5.34965,2092.5,2092.4,0.14035547]
[1617424829283,5.34965,2092.5,2092.3,7.35396004]
[1617424829484,5.34965,2092.5,2092.4,0.14035616]
[1617424829883,5.34965,2092.5,2092.4,5.616e-05]
[1617424830183,5.34965,2092.5,2092.3,0.09945988]
[1617424830384,2.90695,2092.2,2092.1,1.0]
[1617424835291,2.90695,2092.2,2092.1,1.14038039]
[1617424836901,2.90695,2092.2,2092.1,1.0]
[1617424838103,2.90695,2092.2,2091.4,8.33345587]
[1617424838302,2.90695,2092.2,2092.1,1.0]
[1617424849221,2.90695,2092.2,2092.1,7.12229599]
[1617424852125,2.90695,2092.2,2092.1,1.0]
[1617424856931,2.90695,2092.2,2091.8,7.23574022]
[1617424857131,73.2923,2092.7,2091.3,2.90695]
[1617424857132,73.2923,2092.7,2092.1,6.11931011]
[1617424857631,73.2923,2092.7,2092.3,5.00668867]
[1617424859133,2.90695,2092.4,2092.3,5.00668867]
[1617424861639,2.90695,2092.4,2092.2,6.11440784]
[1617424862040,2.90695,2092.4,2092.1,1.0]
[1617424863141,2.90695,2092.4,2092.1,3.90695]
[1617424863446,2.90695,2092.4,2092.1,11.11527137]
[1617424868553,2.90695,2092.4,2092.1,3.90695]
[1617424870152,2.90695,2092.4,2092.1,1.0]
[1617424870353,2.90695,2092.4,2092.3,6.1005315]
[1617424872456,2.90695,2092.4,2092.1,1.0]
[1617424872757,4.53185,2092.4,2092.1,1.0]
[1617424873957,2.90695,2092.4,2092.1,1.0]
[1617424874958,2.90695,2092.4,2092.2,0.14037124]
[1617424879768,2.90695,2092.4,2092.1,1.14037143]
[1617424879967,2.90695,2092.4,2092.3,0.14037131]
[1617424880370,2.90695,2092.4,2092.2,0.14037089]
[1617424880669,2.90695,2092.4,2092.3,0.14037249]
[1617424881270,2.90695,2092.4,2092.2,0.14037272]
[1617424881571,2.90695,2092.4,2092.3,0.14037264]
[1617424881872,2.90695,2092.4,2092.2,0.14037258]
[1617424884775,2.90695,2092.4,2092.3,6.10743097]
[1617424885276,2.90695,2092.4,2092.3,6.2478081]
[1617424889184,2.90695,2092.4,2092.3,0.14037713]
[1617424889384,2.90695,2092.4,2092.2,6.10951673]
[1617424890285,2.90695,2092.4,2092.3,6.11311866]
[1617424892288,2.90695,2092.4,2092.2,6.11353405]
[1617424893088,2.90695,2092.4,2092.3,6.11334565]
[1617424893288,2.90695,2092.4,2092.2,6.11407754]
[1617424893688,2.90695,2092.4,2092.1,1.0]
[1617424898495,2.90695,2092.4,2092.3,6.12051462]
[1617424898896,2.90695,2092.4,2092.1,1.0]